bitfinex-derivatives/quotes_SOLF0:USTF0_20250312
["timestamp","ask_amount","ask_price","bid_price","bid_amount"]
[1741816138503,11.79504926,125.53,125.46,10.5758]
[1741816138703,5.0491,125.54,125.46,10.5758]
[1741816138704,11.79504926,125.49,125.46,7.9717]
[1741816139213,19.76554926,125.49,125.46,7.9717]
[1741816139612,19.82208812,125.49,125.46,8.02688728]
[1741816140811,19.76644926,125.47,125.46,0.05518728]
[1741816141013,11.79504926,125.47,125.46,0.05518728]
[1741816141412,19.76644926,125.47,125.46,0.05518728]
[1741816141810,11.85158812,125.49,125.46,0.05518728]
[1741816142013,11.85158812,125.49,125.46,8.02718728]
[1741816142014,19.82198812,125.49,125.46,8.02718728]
[1741816142209,11.85158812,125.49,125.46,8.02718728]
[1741816142611,19.82208812,125.49,125.46,8.02718728]
[1741816142813,11.85158812,125.49,125.46,8.02718728]
[1741816143014,7.9709,125.48,125.46,0.05518728]
[1741816143416,11.85158812,125.49,125.46,0.05518728]
[1741816143611,19.76644926,125.47,125.46,0.05518728]
[1741816143815,11.79504926,125.47,125.46,0.05518728]
[1741816145322,11.85158812,125.49,125.46,0.05518728]
[1741816146317,19.82208812,125.49,125.46,8.02688728]
[1741816147721,11.85158812,125.49,125.46,0.05518728]
[1741816148324,0.05653886,125.49,125.47,31.1]
[1741816148622,0.05653886,125.49,125.48,7.9708]
[1741816150224,11.79504926,125.52,125.5,7.9689]
[1741816150723,11.79504926,125.52,125.48,2.609]
[1741816151421,0.05653822,125.51,125.5,7.9689]
[1741816152813,0.05653822,125.51,125.49,0.06102599]
[1741816153016,0.05653822,125.51,125.49,8.03092599]
[1741816154724,0.05653822,125.51,125.49,0.06102599]
[1741816154924,0.05653822,125.51,125.5,7.9695]
[1741816155326,0.05653822,125.51,125.49,0.06102599]
[1741816155525,0.05653822,125.51,125.49,8.03082599]
[1741816156227,0.05653822,125.51,125.49,0.06102599]
[1741816157030,0.05653822,125.51,125.5,38.8895]
[1741816158027,43.84599971,125.62,125.5,50.67504926]
[1741816158232,11.79504926,125.6,125.53,11.79504926]
[1741816158432,11.79504926,125.6,125.54,36.1003]
[1741816158930,0.05019281,125.58,125.57,7.9651]
[1741816159127,0.05019281,125.58,125.57,38.9851]
[1741816159128,9.281e-05,125.58,125.57,38.9851]
[1741816164633,9.281e-05,125.58,125.56,0.05422191]
[1741816164833,9.281e-05,125.58,125.56,8.01952191]
[1741816165535,9.281e-05,125.58,125.57,7.9651]
[1741816167834,9.281e-05,125.58,125.56,0.05422191]
[1741816168035,9.281e-05,125.58,125.56,8.01952191]
[1741816168436,9.281e-05,125.58,125.57,7.9651]
[1741816169138,9.281e-05,125.58,125.56,8.01972191]
[1741816169338,9.281e-05,125.58,125.56,0.05422191]
[1741816169940,9.281e-05,125.58,125.56,8.01952191]
[1741816170235,9.281e-05,125.58,125.56,0.05422191]
[1741816170741,7.96519281,125.58,125.56,0.05422191]
[1741816171138,7.9651,125.57,125.56,0.05422191]
[1741816171336,18.48917462,125.58,125.51,30.98]
[1741816171537,20.93928181,125.58,125.51,30.98]
[1741816171838,7.9673,125.54,125.5,30.98]
[1741816172042,7.9673,125.54,125.48,7.6282]
[1741816172239,18.48908181,125.56,125.5,7.9692]
[1741816172539,0.05946942,125.52,125.5,0.05488289]
[1741816173042,0.05946942,125.52,125.51,7.9689]
[1741816174342,0.05946942,125.52,125.5,0.05488289]
[1741816175044,0.05946942,125.52,125.5,8.02398289]
[1741816175245,0.05946942,125.52,125.5,0.05488289]
[1741816175447,0.05946942,125.52,125.5,8.02388289]
[1741816175646,0.05946942,125.52,125.5,0.05488289]
[1741816175950,0.05946942,125.52,125.51,7.9689]
[1741816176540,0.05946942,125.52,125.5,0.05488289]
[1741816176541,0.05946942,125.52,125.5,8.02418289]
[1741816178549,0.05946942,125.52,125.5,0.05488289]
[1741816178750,0.05946942,125.52,125.51,7.9689]
[1741816181954,0.05946942,125.52,125.5,0.05488289]
[1741816182454,11.84516593,125.58,125.5,11.90004882]
[1741816182645,11.84516593,125.58,125.56,7.9657]
[1741816183452,11.90051569,125.58,125.56,8.01763087]
[1741816186051,11.90051569,125.58,125.56,0.05193087]
[1741816186353,11.90051569,125.58,125.57,7.9651]
[1741816187853,0.05534976,125.58,125.57,7.9651]
[1741816188552,11.84516593,125.61,125.59,7.9634]
[1741816188751,11.84516593,125.61,125.56,30.84]
[1741816189357,19.80796593,125.61,125.58,7.9638]
[1741816189553,11.89849522,125.61,125.58,0.05279581]
[1741816189959,7.9632,125.6,125.58,0.05279581]
[1741816190865,7.9632,125.6,125.58,8.01719581]
[1741816191360,7.9632,125.6,125.58,0.05279581]
[1741816192157,11.89849522,125.61,125.58,8.01659581]
[1741816192359,11.89849522,125.61,125.58,0.05279581]
[1741816192659,19.86119522,125.61,125.58,8.01689581]
[1741816193263,19.80896593,125.59,125.58,0.05279581]
[1741816193559,11.84516593,125.59,125.58,0.05279581]
[1741816193764,2.929e-05,125.61,125.6,7.9632]
[1741816194058,2.929e-05,125.61,125.6,50.52836593]
[1741816194857,2.929e-05,125.61,125.6,38.6832]
[1741816195459,2.929e-05,125.61,125.6,50.52836593]
[1741816196260,2.929e-05,125.61,125.6,38.6832]
[1741816214977,7.96292929,125.61,125.58,8.01689581]
[1741816215182,7.96292929,125.61,125.58,30.67279581]
[1741816215183,2.929e-05,125.61,125.58,30.67279581]
[1741816215382,2.929e-05,125.61,125.58,0.05279581]
[1741816215582,7.96292929,125.61,125.58,8.01679581]
[1741816215878,2.929e-05,125.61,125.58,0.05279581]
[1741816216081,2.929e-05,125.61,125.58,18.53300667]
[1741816216287,2.929e-05,125.61,125.6,26.44341086]
[1741816216582,2.929e-05,125.61,125.6,57.06341086]
[1741816218483,2.929e-05,125.61,125.6,50.40810509]
[1741816218875,2.929e-05,125.61,125.6,19.78810509]
[1741816219184,2.929e-05,125.61,125.58,0.05279581]
[1741816219485,2.929e-05,125.61,125.58,30.67279581]
[1741816220285,11.82490509,125.6,125.58,0.05279581]
[1741816221082,11.82490509,125.6,125.58,8.01719581]
[1741816221283,19.78870509,125.6,125.58,0.05279581]
[1741816221484,11.82490509,125.6,125.58,0.05279581]
[1741816221884,7.9638,125.59,125.58,0.05279581]
[1741816226991,20.99411186,125.6,125.53,30.62]
[1741816227186,59.36632448,125.67,125.54,18.49741186]
[1741816227489,5.0794,125.64,125.56,18.49741186]
[1741816227679,5.0794,125.64,125.57,30.62]
[1741816227989,0.0514192,125.62,125.59,0.05462388]
[1741816228185,0.0514192,125.62,125.61,7.9625]
[1741816230794,1.92e-05,125.62,125.61,7.9625]
[1741816235594,1.92e-05,125.62,125.59,8.01812388]
[1741816235795,1.92e-05,125.62,125.59,0.05462388]
[1741816236502,1.92e-05,125.62,125.6,7.9631]
[1741816236696,1.92e-05,125.62,125.59,0.05462388]
[1741816236999,7.9629,125.61,125.59,0.05462388]
[1741816237503,1.92e-05,125.62,125.59,0.05462388]
[1741816238603,1.92e-05,125.62,125.59,8.01812388]
[1741816239411,26.46061186,125.6,125.59,2.388e-05]
[1741816239805,34.42061186,125.6,125.59,2.388e-05]
[1741816242514,26.45741186,125.6,125.47,59.27703783]
[1741816242706,18.49741186,125.57,125.48,41.64481692]
[1741816243014,18.49741186,125.57,125.5,7.9691]
[1741816243015,30.62,125.56,125.5,7.9691]
[1741816243314,7.967,125.54,125.5,7.9691]
[1741816243608,40.9879,125.56,125.52,7.9682]
[1741816243809,0.06032113,125.53,125.52,7.9682]
[1741816247817,0.06032113,125.53,125.51,0.05981741]
[1741816248021,0.06032113,125.53,125.51,8.02831741]
[1741816248419,0.06032113,125.53,125.51,0.05981741]
[1741816248617,0.06032113,125.53,125.52,7.9682]
[1741816248819,0.06032113,125.53,125.51,0.05981741]
[1741816249413,0.06032113,125.53,125.51,8.02831741]
[1741816249610,0.06032113,125.53,125.51,0.05981741]
[1741816250915,8.02822113,125.53,125.51,0.05981741]
[1741816251521,0.06032113,125.53,125.51,8.02821741]
[1741816255423,0.06032113,125.53,125.51,0.05981741]
[1741816255620,0.06032113,125.53,125.52,7.9682]
[1741816259030,2.113e-05,125.53,125.52,7.9682]
[1741816259222,2.113e-05,125.53,125.52,26.46561186]
[1741816259529,2.113e-05,125.53,125.52,31.36081186]
[1741816259726,2.113e-05,125.53,125.52,39.32081186]
[1741816260224,2.113e-05,125.53,125.52,32.66048508]
[1741816261226,2.113e-05,125.53,125.52,24.70048508]
[1741816262223,2.113e-05,125.53,125.52,33.78501306]
[1741816262430,2.5676,125.63,125.54,18.49701306]
[1741816262626,2.5676,125.63,125.55,30.62]
[1741816263626,0.05426841,125.6,125.59,7.9638]
[1741816264030,7.9613,125.63,125.59,7.9638]
[1741816264224,18.49701306,125.67,125.58,49.17249912]
[1741816264425,18.49701306,125.67,125.59,2.3628]
[1741816264830,7.9598,125.66,125.59,2.3628]
[1741816265235,0.05505504,125.64,125.61,0.05092107]
[1741816265536,0.05505504,125.64,125.62,7.9618]
[1741816269939,0.05505504,125.64,125.63,7.9613]
[1741816271336,132.20612899,125.7,125.64,7.9602]
[1741816271542,51.43721306,125.71,125.64,38.5802]
[1741816272237,7.9585,125.68,125.64,38.5802]
[1741816272537,7.9585,125.68,125.66,0.05538009]
[1741816282548,7.9587,125.67,125.66,0.05538009]
[1741816291452,19.8353143,125.69,125.66,8.01448009]
[1741816292350,11.8775143,125.69,125.66,8.01448009]
[1741816292652,7.9581,125.68,125.66,0.05538009]
[1741816293954,7.9581,125.68,125.66,8.01468009]
[1741816294853,11.8775143,125.69,125.66,8.01468009]
[1741816295160,19.8353143,125.69,125.66,8.01468009]
[1741816302158,7.9581,125.68,125.66,8.01468009]
[1741816302855,11.8775143,125.69,125.66,8.01468009]
[1741816303055,19.8353143,125.69,125.66,8.01468009]
[1741816303559,19.8353143,125.69,125.66,0.05538009]
[1741816304254,11.82059632,125.67,125.61,42.40059632]
[1741816304658,7.9601,125.65,125.62,7.9616]
[1741816305153,11.82059632,125.67,125.62,7.9616]
[1741816305359,7.9606,125.65,125.62,7.9616]
[1741816305554,7.9606,125.65,125.63,0.05744733]
[1741816305755,0.05694351,125.66,125.63,0.05744733]
[1741816305954,7.9606,125.64,125.63,0.05744733]
[1741816306654,0.05694351,125.66,125.63,0.05744733]
[1741816306860,7.9606,125.64,125.63,0.05744733]
[1741816310758,14.06219632,125.65,125.56,42.40059632]
[1741816311059,11.82059632,125.61,125.56,11.82059632]
[1741816311253,11.82059632,125.61,125.55,238.78]
[1741816311560,11.82059632,125.61,125.55,277.326]
[1741816311561,7.9641,125.59,125.55,277.326]
[1741816311958,0.05406061,125.58,125.56,0.05602218]
[1741816312855,0.05406061,125.58,125.52,44.19634289]
[1741816312856,42.40059632,125.57,125.52,44.19634289]
[1741816313164,11.82059632,125.53,125.52,44.19634289]
[1741816313364,11.82059632,125.53,125.48,44.19634289]
[1741816313960,0.0513509,125.52,125.49,0.05631929]
[1741816314557,7.9689,125.51,125.49,0.05631929]
[1741816315556,0.0513509,125.52,125.49,0.05631929]
[1741816315757,0.0513509,125.52,125.5,7.9693]
[1741816317866,0.0513509,125.52,125.51,7.9689]
[1741816321161,0.0513509,125.52,125.51,19.78949632]
[1741816334071,0.0513509,125.52,125.51,7.9689]
[1741816335373,19.78729632,125.55,125.53,7.9672]
[1741816335374,11.82059632,125.55,125.53,7.9672]
[1741816336579,11.87843754,125.55,125.53,8.02122144]
[1741816338080,19.84483754,125.55,125.53,0.05402144]
[1741816338477,11.87843754,125.55,125.53,0.05402144]
[1741816339176,7.967,125.54,125.53,0.05402144]
[1741816363510,11.87843754,125.55,125.53,0.05402144]
[1741816364008,19.84523754,125.55,125.53,0.05402144]
[1741816364508,7.967,125.54,125.53,0.05402144]
[1741816364710,11.87843754,125.55,125.53,0.05402144]
[1741816365211,19.84523754,125.55,125.53,0.05402144]
[1741816365405,11.87843754,125.55,125.53,0.05402144]
[1741816365601,11.87843754,125.55,125.54,7.967]
[1741816365812,11.87843754,125.55,125.53,0.05402144]
[1741816366513,19.84523754,125.55,125.53,0.05402144]
[1741816367412,19.84523754,125.55,125.53,8.02162144]
[1741816367911,11.87843754,125.55,125.53,8.02132144]
[1741816368509,11.87843754,125.55,125.53,0.05402144]
[1741816369006,7.967,125.54,125.53,0.05402144]
[1741816369204,0.05784122,125.55,125.54,7.967]
[1741816375607,11.82059632,125.62,125.54,19.78059632]
[1741816375815,264.04294213,125.65,125.58,11.82059632]
[1741816376013,256.08264213,125.65,125.6,11.82059632]
[1741816376207,236.0109295,125.65,125.63,7.9609]
[1741816376414,236.0109295,125.65,125.62,30.56]
[1741816376714,43.84599971,125.65,125.62,30.56]
[1741816376915,43.9043586,125.65,125.62,30.61520364]
[1741816377815,43.9043586,125.65,125.64,7.9606]
[1741816378412,0.05835889,125.65,125.64,7.9606]
[1741816378611,11.82059632,125.69,125.65,7.9596]
[1741816378809,11.82059632,125.69,125.65,38.5196]
[1741816379810,0.05147839,125.68,125.66,0.05855274]
[1741816380011,0.05147839,125.68,125.66,8.01785274]
[1741816380411,0.05147839,125.68,125.67,7.9587]
[1741816382721,0.05147839,125.68,125.66,19.83804906]
[1741816384919,0.05147839,125.68,125.67,30.52]
[1741816385421,0.05147839,125.68,125.66,11.87914906]
[1741816385617,0.05147839,125.68,125.67,30.52]
[1741816385817,0.05147839,125.68,125.66,11.87914906]
[1741816386726,0.05147839,125.68,125.66,19.83844906]
[1741816387321,8.00967839,125.68,125.66,11.87914906]
[1741816389218,0.05147839,125.68,125.66,19.83844906]
[1741816389420,0.05147839,125.68,125.66,11.87914906]
[1741816390025,0.05147839,125.68,125.66,19.83814906]
[1741816392726,0.05147839,125.68,125.67,7.9587]
[1741816397420,7.9567,125.71,125.68,7.9579]
[1741816397619,7.9567,125.71,125.68,38.4579]
[1741816397823,15.99739632,125.73,125.68,38.4579]
[1741816398019,15.99739632,125.73,125.69,7.9574]
[1741816398224,15.99739632,125.73,125.68,30.5]
[1741816398523,7.9568,125.71,125.69,0.05070079]
[1741816399128,7.9568,125.7,125.69,0.05070079]
[1741816400528,7.9568,125.71,125.69,0.05070079]
[1741816400830,0.05418852,125.72,125.69,0.05070079]
[1741816401432,7.9562,125.71,125.69,0.05070079]
[1741816402432,0.05418852,125.72,125.69,0.05070079]
[1741816402646,7.9568,125.7,125.69,0.05070079]
[1741816403035,7.9565,125.71,125.69,0.05070079]
[1741816403434,0.05418852,125.72,125.69,0.05070079]
[1741816403633,7.9562,125.71,125.69,0.05070079]
[1741816404131,0.05418852,125.72,125.69,0.05070079]
[1741816404737,7.9568,125.71,125.69,0.05070079]
[1741816405438,0.05418852,125.72,125.69,0.05070079]
[1741816405638,7.9562,125.71,125.69,0.05070079]
[1741816406837,0.05418852,125.72,125.69,0.05070079]
[1741816407038,11.87478484,125.72,125.69,0.05070079]
[1741816407441,7.9568,125.7,125.69,0.05070079]
[1741816407639,11.87478484,125.72,125.69,0.05070079]
[1741816408048,7.9568,125.71,125.69,0.05070079]
[1741816408240,11.87478484,125.72,125.69,0.05070079]
[1741816408742,7.9562,125.71,125.69,0.05070079]
[1741816409143,7.9568,125.7,125.69,0.05070079]
[1741816419645,7.9597,125.66,125.63,11.82059632]
[1741816419851,11.82059632,125.68,125.62,7.9616]
[1741816420149,11.82059632,125.66,125.61,42.30059632]
[1741816420352,11.82059632,125.66,125.61,50.26279632]
[1741816420353,7.961,125.64,125.61,50.26279632]
[1741816420652,11.82059632,125.66,125.61,11.82059632]
[1741816420854,7.9614,125.63,125.61,11.88051765]
[1741816421950,0.05146567,125.64,125.61,11.88051765]
[1741816422151,0.05146567,125.64,125.61,19.84301765]
[1741816422345,0.05146567,125.64,125.61,11.88051765]
[1741816423152,7.9613,125.63,125.61,11.88051765]
[1741816423354,0.05146567,125.64,125.61,11.88051765]
[1741816423853,8.01256567,125.64,125.61,19.84301765]
[1741816425655,7.9616,125.63,125.61,11.88051765]
[1741816425853,0.05146567,125.64,125.61,11.88051765]
[1741816426749,11.82059632,125.7,125.63,11.82059632]
[1741816426952,11.82059632,125.7,125.64,30.48]
[1741816427462,41.56306319,125.72,125.67,11.82059632]
[1741816427463,11.08306319,125.72,125.67,11.82059632]
[1741816427754,11.08306319,125.72,125.67,42.30059632]
[1741816427944,0.05689255,125.71,125.68,0.05099724]
[1741816428549,0.05689255,125.71,125.69,7.9575]
[1741816429055,0.05689255,125.71,125.68,0.05099724]
[1741816429258,0.05689255,125.71,125.7,7.9568]
[1741816429660,0.05689255,125.71,125.68,0.05099724]
[1741816429848,0.05689255,125.71,125.69,7.9571]
[1741816431046,0.05689255,125.71,125.68,0.05099724]
[1741816433255,7.9575,125.69,125.68,0.05099724]
[1741816433845,7.9571,125.7,125.68,0.05099724]
[1741816434560,7.9572,125.7,125.68,0.05099724]
[1741816437061,0.05689255,125.71,125.68,0.05099724]
[1741816438463,7.9573,125.7,125.68,0.05099724]
[1741816439565,0.05689255,125.71,125.68,0.05099724]
[1741816440359,7.9575,125.69,125.68,0.05099724]
[1741816456269,11.87748887,125.71,125.68,0.05099724]
[1741816456468,7.9572,125.7,125.68,0.05099724]
[1741816456872,11.87748887,125.71,125.68,0.05099724]
[1741816457072,7.9575,125.69,125.68,0.05099724]
[1741816460478,19.77809632,125.69,125.68,0.05099724]
[1741816467184,7.9575,125.69,125.68,0.05099724]
[1741816473388,42.26059632,125.7,125.61,11.82059632]
[1741816473593,11.82059632,125.64,125.59,11.82059632]
[1741816473894,7.9624,125.62,125.59,11.82059632]
[1741816474593,8.01531836,125.62,125.59,11.87985734]
[1741816474795,8.01531836,125.62,125.59,19.84335734]
[1741816477394,0.05291836,125.62,125.61,19.78309632]
[1741816483496,0.05291836,125.62,125.61,7.9625]
[1741816485093,0.05291836,125.62,125.61,19.78309632]
[1741816485496,0.05291836,125.62,125.61,50.22309632]
[1741816488995,0.05291836,125.62,125.61,42.26059632]
[1741816489193,0.05291836,125.62,125.59,11.87985734]
[1741816489397,19.78379632,125.6,125.59,0.05926102]
[1741816489598,42.26059632,125.6,125.53,56.01693921]
[1741816489902,11.82059632,125.57,125.53,44.19634289]
[1741816490497,11.82059632,125.57,125.51,11.82059632]
[1741816490699,0.05263287,125.56,125.54,0.05304779]
[1741816492504,0.05263287,125.56,125.54,8.01984779]
[1741816494908,0.05263287,125.56,125.54,0.05304779]
[1741816495806,0.05263287,125.56,125.54,8.02004779]
[1741816496609,0.05263287,125.56,125.54,0.05304779]
[1741816498309,8.01893287,125.56,125.54,0.05304779]
[1741816501412,8.01883287,125.56,125.54,0.05304779]
[1741816502313,7.9663,125.55,125.54,0.05304779]
[1741816502702,0.05263287,125.56,125.54,0.05304779]
[1741816503512,7.9663,125.55,125.54,0.05304779]
[1741816505707,8.01853287,125.56,125.54,0.05304779]
[1741816506512,7.9663,125.55,125.54,0.05304779]
[1741816506706,0.05263287,125.56,125.54,0.05304779]
[1741816507810,0.05263287,125.56,125.55,7.9663]
[1741816509613,19.78349632,125.61,125.54,11.87364411]
[1741816509808,19.78349632,125.61,125.58,7.9641]
[1741816510012,7.9635,125.6,125.56,42.26059632]
[1741816510514,19.78359632,125.61,125.56,42.26059632]
[1741816511015,0.05352724,125.6,125.57,0.05715095]
[1741816512211,0.05352724,125.6,125.59,7.9638]
[1741816512413,16.05709632,125.65,125.59,30.44]
[1741816512803,24.01749632,125.65,125.59,30.44]
[1741816513417,0.05408328,125.63,125.61,0.05565909]
[1741816513716,0.05408328,125.63,125.62,7.9618]
[1741816514413,0.05408328,125.63,125.62,19.78239632]
[1741816514612,0.05408328,125.63,125.62,50.20239632]
[1741816514810,7.9584,125.68,125.65,7.9598]
[1741816515212,7.9591,125.67,125.62,42.24059632]
[1741816515407,16.01969632,125.69,125.62,42.24059632]
[1741816515911,0.05456809,125.67,125.64,0.05817108]
[1741816516722,0.05456809,125.67,125.65,7.96]
[1741816516916,0.05456809,125.67,125.64,0.05817108]
[1741816517216,11.82059632,125.65,125.64,0.05817108]
[1741816517417,7.961,125.64,125.6,11.82059632]
[1741816518119,7.9613,125.63,125.6,11.82059632]
[1741816518717,8.01181716,125.63,125.6,11.87567427]
[1741816521430,7.9619,125.62,125.6,0.05507795]
[1741816522625,8.01201716,125.63,125.6,0.05507795]
[1741816522820,0.05051716,125.63,125.62,11.82059632]
[1741816523426,0.05051716,125.63,125.62,19.78249632]
[1741816526134,7.959,125.67,125.64,7.9602]
[1741816526334,16.01969632,125.69,125.63,30.4]
[1741816526534,7.9582,125.68,125.63,30.4]
[1741816526738,7.9582,125.68,125.65,7.9599]
[1741816526932,7.9582,125.68,125.63,30.4]
[1741816526933,7.9588,125.67,125.63,30.4]
[1741816527334,0.05686968,125.66,125.64,0.06094244]
[1741816527533,0.05686968,125.66,125.64,8.02124244]
[1741816528837,8.01626968,125.66,125.64,0.06094244]
[1741816530630,0.05686968,125.66,125.64,0.06094244]
[1741816531639,8.01626968,125.66,125.64,0.06094244]
[1741816531834,0.05686968,125.66,125.64,0.06094244]
[1741816532345,19.78059632,125.65,125.64,0.06094244]
[1741816533435,7.9618,125.63,125.59,19.78409632]
[1741816534646,0.05933266,125.62,125.6,0.05628809]
[1741816534842,8.02163266,125.62,125.6,0.05628809]
[1741816535546,0.05933266,125.62,125.6,0.05628809]
[1741816535748,11.82059632,125.61,125.55,42.22059632]
[1741816535945,11.82059632,125.61,125.56,7.9653]
[1741816536147,11.82059632,125.61,125.55,11.82059632]
[1741816536846,0.06038768,125.59,125.57,0.05314667]
[1741816537544,0.06038768,125.59,125.58,7.9644]
[1741816539036,42.22059632,125.65,125.61,7.9621]
[1741816539240,11.82059632,125.65,125.61,7.9621]
[1741816539443,19.78089632,125.65,125.61,7.9621]
[1741816540349,0.05938679,125.64,125.62,8.01795921]
[1741816541045,0.05938679,125.64,125.62,0.05615921]
[1741816541251,0.05938679,125.64,125.63,7.9613]
[1741816546557,0.05938679,125.64,125.62,0.05615921]
[1741816547254,0.05938679,125.64,125.63,7.9613]
[1741816547455,0.05938679,125.64,125.62,0.05615921]
[1741816548954,0.05938679,125.64,125.63,7.9613]
[1741816554061,0.05938679,125.64,125.63,38.3413]
[1741816554666,8.679e-05,125.64,125.63,38.3413]
[1741816555856,8.679e-05,125.64,125.63,42.4666]
[1741816556057,8.679e-05,125.64,125.63,60.95075377]
[1741816561561,121.17717058,125.76,125.63,79.43360754]
[1741816561865,11.08306319,125.75,125.67,18.48415377]
[1741816562064,11.08306319,125.75,125.68,30.38]
[1741816562364,11.08306319,125.75,125.7,11.80825511]
[1741816562560,19.03726319,125.75,125.71,30.38]
[1741816562765,0.05156017,125.74,125.72,7.9554]
[1741816562964,0.05156017,125.74,125.71,30.4367404]
[1741816563369,0.05156017,125.74,125.73,7.9549]
[1741816564464,43.84599971,125.76,125.73,7.9549]
[1741816564769,43.84599971,125.76,125.72,19.76345511]
[1741816565169,7.9537,125.75,125.72,19.76345511]
[1741816565868,51.79949971,125.76,125.73,7.9549]
[1741816566071,7.9535,125.76,125.73,7.9549]
[1741816567567,11.80825511,125.78,125.72,11.80825511]
[1741816567771,11.80825511,125.78,125.73,7.9546]
[1741816567971,11.80825511,125.78,125.74,0.05742114]
[1741816568377,7.9532,125.76,125.74,0.05742114]
[1741816568772,169.58608736,125.83,125.74,42.22567625]
[1741816568971,11.80825511,125.82,125.76,11.80825511]
[1741816569167,11.80825511,125.82,125.77,30.42073341]
[1741816570673,7.9502,125.81,125.78,7.9515]
[1741816573275,22.73330614,125.84,125.77,30.42073341]
[1741816573475,18.43340614,125.82,125.77,0.06073341]
[1741816573671,18.43340614,125.8,125.77,0.06073341]
[1741816574275,7.9518,125.78,125.77,0.06073341]
[1741816575177,7.9537,125.75,125.72,38.2952]
[1741816576270,8.01080672,125.75,125.72,38.35085375]
[1741816577079,0.05710672,125.75,125.72,30.39565375]
[1741816577373,0.05710672,125.75,125.73,7.9548]
[1741816577577,0.05710672,125.75,125.72,30.39565375]
[1741816578476,0.05710672,125.75,125.73,7.9549]
[1741816579276,0.05710672,125.75,125.74,7.9543]
[1741816579580,48.77340614,125.83,125.73,18.43340614]
[1741816579775,48.77340614,125.83,125.73,20.52700614]
[1741816580074,7.9509,125.8,125.73,20.52700614]
[1741816580275,50.93940614,125.83,125.73,20.52700614]
[1741816580468,50.93940614,125.83,125.76,7.9527]
[1741816580679,7.9512,125.79,125.77,0.06106732]
[1741816581273,7.95,125.81,125.78,7.9518]
[1741816581473,32.506,125.83,125.77,0.06106732]
[1741816581775,32.506,125.83,125.77,8.01306732]
[1741816582480,7.9506,125.8,125.77,8.01306732]
[1741816584681,7.9506,125.8,125.77,0.06106732]
[1741816584985,7.9506,125.8,125.78,7.9518]
[1741816587183,2.166,125.83,125.78,7.9518]
[1741816587385,2.166,125.83,125.77,8.01326732]
[1741816587875,2.166,125.83,125.78,7.9517]
[1741816587876,7.9508,125.8,125.78,7.9517]
[1741816588084,7.9508,125.8,125.77,0.06106732]
[1741816588282,20.59940614,125.83,125.77,0.06106732]
[1741816588283,48.75340614,125.81,125.77,0.06106732]
[1741816588483,20.59840614,125.79,125.71,18.43340614]
[1741816588877,7.9535,125.76,125.71,18.43340614]
[1741816589072,20.59840614,125.79,125.71,18.43340614]
[1741816589279,30.32,125.78,125.7,34.4482]
[1741816589481,7.9536,125.76,125.72,7.9551]
[1741816589678,7.9536,125.76,125.7,34.4482]
[1741816589679,0.06117254,125.75,125.73,0.05562835]
[1741816590385,7.9543,125.74,125.73,0.05562835]
[1741816596792,0.06117254,125.75,125.73,0.05562835]
[1741816596986,0.06117254,125.75,125.73,30.37562835]
[1741816597186,0.06117254,125.75,125.74,7.9543]
[1741816597584,0.06117254,125.75,125.74,19.76304778]
[1741816597985,0.06117254,125.75,125.74,7.9543]
[1741816598688,0.06117254,125.75,125.73,42.18437613]
[1741816598881,8.01497254,125.75,125.73,11.86437613]
[1741816600091,8.01497254,125.75,125.73,19.81927613]
[1741816600288,8.01497254,125.75,125.73,11.86437613]
[1741816600689,0.06117254,125.75,125.73,19.81927613]
[1741816601390,0.06117254,125.75,125.74,7.9543]
[1741816601587,0.06117254,125.75,125.73,11.86437613]
[1741816602091,0.06117254,125.75,125.74,7.9543]
[1741816609098,2.165,125.79,125.76,7.9527]
[1741816610197,10.1165,125.79,125.76,8.01307846]
[1741816610993,7.9524,125.77,125.76,0.06037846]
[1741816611301,11.80874778,125.78,125.69,32.3096]
[1741816611502,11.80874778,125.75,125.7,11.80874778]
[1741816611695,7.955,125.73,125.7,11.80874778]
[1741816612202,7.955,125.73,125.7,19.76534778]
[1741816612399,8.01535529,125.73,125.7,19.81697686]
[1741816612798,0.06035529,125.73,125.7,11.86037686]
[1741816613102,8.01565529,125.73,125.7,19.81687686]
[1741816613701,8.01565529,125.73,125.7,8.00812908]
[1741816613905,11.86910307,125.73,125.7,0.05162908]
[1741816614603,11.80874778,125.71,125.65,11.80874778]
[1741816615003,11.80874778,125.69,125.63,53.1535647]
[1741816615401,7.9587,125.67,125.63,61.1145647]
[1741816615595,11.80874778,125.69,125.63,61.1145647]
[1741816615596,0.05119923,125.66,125.64,0.05089012]
[1741816616207,0.05119923,125.66,125.64,8.01129012]
[1741816616504,0.05119923,125.66,125.64,0.05089012]
[1741816617900,0.05119923,125.66,125.64,8.01139012]
[1741816620809,0.05119923,125.66,125.65,7.96]
[1741816622209,0.05119923,125.66,125.65,50.08874778]